bitfinex-derivatives/quotes_ETHF0:USTF0_20250518
["timestamp","ask_amount","ask_price","bid_price","bid_amount"]
[1747592174291,2.02384,2469.7,2468.6,3.2078]
[1747592174489,3.2078,2469.7,2469.0,3.2078]
[1747592174684,6.0342,2470.1,2469.1,5.777]
[1747592174889,3.2078,2470.2,2469.3,3.2078]
[1747592175087,6.0342,2470.0,2469.4,5.777]
[1747592175388,4.01729,2469.9,2469.5,0.8096]
[1747592175596,3.2078,2469.9,2469.4,5.777]
[1747592175788,3.2078,2469.9,2469.7,0.80952]
[1747592176094,3.2078,2469.9,2469.4,5.777]
[1747592176297,3.2078,2469.9,2469.0,3.2078]
[1747592176298,6.713,2469.4,2469.0,3.2078]
[1747592176587,3.2078,2467.1,2466.0,5.13020834]
[1747592176889,4.01851,2466.1,2466.0,4.16e-06]
[1747592177086,24.32951,2466.1,2466.0,4.16e-06]
[1747592177282,3.2078,2465.5,2464.1,3.89950933]
[1747592177489,4.01901,2464.6,2464.2,5.8669]
[1747592177697,4.01893,2464.9,2464.7,0.68827543]
[1747592177994,4.01893,2464.9,2464.6,0.68827543]
[1747592177995,0.81114,2464.8,2464.6,0.68827543]
[1747592178291,3.2078,2464.9,2464.4,0.68827543]
[1747592178487,3.2078,2464.6,2464.2,5.8669]
[1747592178684,3.2078,2464.6,2464.5,0.68827543]
[1747592179493,3.2078,2465.0,2464.5,0.68827543]
[1747592179684,3.2078,2465.3,2464.6,5.6728]
[1747592179887,0.81105,2465.1,2464.8,0.68827543]
[1747592180194,3.2078,2464.9,2464.7,0.68827543]
[1747592180396,3.2078,2464.9,2464.5,0.68827543]
[1747592180781,3.2078,2464.9,2464.1,5.6728]
[1747592180995,3.2078,2464.9,2464.7,0.68827543]
[1747592181388,3.2078,2464.9,2464.1,5.6728]
[1747592181694,3.2078,2464.9,2464.7,0.68827543]
[1747592181883,3.2078,2464.9,2464.8,0.68827543]
[1747592182290,3.2078,2464.9,2464.8,1.49941543]
[1747592182594,3.2078,2465.3,2464.9,0.81108]
[1747592182792,3.2078,2465.3,2465.1,0.68827543]
[1747592183198,0.8112,2464.7,2464.2,20.291]
[1747592183495,3.2078,2464.9,2464.2,20.291]
[1747592183702,3.2078,2465.2,2465.1,0.68827543]
[1747592184793,3.2078,2465.2,2464.3,5.5369]
[1747592184991,3.058,2465.6,2464.3,5.5369]
[1747592184992,3.2078,2464.9,2464.7,0.68827543]
[1747592185184,6.2658,2464.9,2464.8,0.68827543]
[1747592185700,6.2658,2464.9,2464.3,5.5369]
[1747592185994,0.81117,2464.7,2464.3,5.5369]
[1747592186191,26.4998,2464.9,2464.5,0.81124]
[1747592186192,3.2078,2464.6,2464.5,0.81124]
[1747592186793,3.2078,2465.0,2464.6,0.81119]
[1747592187100,3.2078,2465.0,2464.7,0.68827543]
[1747592187492,0.81119,2464.7,2464.3,6.34819]
[1747592187691,3.2078,2464.7,2464.6,0.68827543]
[1747592188200,7.07697,2464.7,2464.6,0.68827543]
[1747592188392,3.058,2464.7,2464.3,3.5369]
[1747592188696,3.2078,2464.5,2464.4,0.68827543]
[1747592188893,5.6799,2464.6,2464.4,0.68827543]
[1747592189085,0.81124,2464.5,2463.7,23.5088]
[1747592189285,3.058,2464.5,2464.3,0.68827543]
[1747592189489,0.81136,2464.2,2464.1,0.68827543]
[1747592189693,3.2078,2464.4,2463.7,23.5088]
[1747592189898,3.2078,2464.1,2463.8,0.68827543]
[1747592190098,2.0286,2463.9,2462.7,3.2078]
[1747592190294,3.2078,2462.9,2461.5,5.23833]
[1747592190491,5.6,2462.8,2461.7,3.2078]
[1747592190694,3.2078,2462.3,2461.7,3.2078]
[1747592191097,0.26963252,2462.7,2461.7,3.2078]
[1747592191402,3.2078,2462.6,2462.2,0.81199]
[1747592191598,5.6,2462.5,2461.9,0.81207]
[1747592191798,5.6,2462.5,2461.8,3.2078]
[1747592191799,3.2078,2462.3,2461.8,3.2078]
[1747592191993,3.2078,2462.3,2461.6,3.058]
[1747592192194,0.81203,2462.1,2461.6,3.058]
[1747592192395,20.167,2462.1,2461.3,3.2078]
[1747592192593,20.167,2462.1,2461.6,0.81218]
[1747592192797,20.167,2462.1,2461.7,0.81215]
[1747592193096,20.167,2462.1,2461.0,5.08895]
[1747592193296,20.167,2462.1,1376.8,1.24685373]
[1747592193297,3.2078,2459.2,2457.2,7.10730933]
[1747592193491,3.2078,2456.7,2455.2,12.2296032]
[1747592193690,3.2078,2456.7,2455.6,3.2078]
[1747592193891,3.2078,2456.6,2455.6,3.2078]
[1747592194099,3.2078,2456.2,2455.5,5.11771858]
[1747592194302,2.03369,2457.8,2455.5,5.11771858]
[1747592194303,3.2078,2455.9,2455.6,3.28924648]
[1747592194504,3.2078,2455.9,2455.7,0.08144317]
[1747592194689,3.2078,2457.1,2456.0,3.2078]
[1747592194897,3.2078,2456.7,2456.1,0.0814299]
[1747592195192,31.96015,2458.4,2456.1,0.0814299]
[1747592195193,3.2078,2456.4,2456.1,0.0814299]
[1747592195397,3.2078,2456.6,2456.1,0.0814299]
[1747592195597,3.2078,2456.3,2456.1,0.0814299]
[1747592195901,3.2078,2456.3,2456.2,3.2078]
[1747592196096,3.2078,2456.6,2456.2,3.2078]
[1747592196305,3.2078,2456.6,2456.3,0.08142327]
[1747592196998,3.2078,2456.6,2456.5,3.2078]
[1747592197204,3.2078,2456.6,2456.5,3.058]
[1747592197702,3.2078,2456.6,2456.5,6.2658]
[1747592197999,3.2078,2456.9,2456.5,3.058]
[1747592198204,3.2078,2456.6,2455.6,3.26225129]
[1747592198402,3.2078,2456.9,2455.7,29.2061]
[1747592198701,3.2078,2457.2,2455.8,20.334]
[1747592198895,23.3738,2457.9,2457.1,3.2078]
[1747592199100,5.5789,2457.8,2457.2,0.08139345]
[1747592199501,3.2078,2457.9,2457.3,3.2078]
[1747592199706,3.2078,2457.9,2457.4,5.6055]
[1747592199910,3.2078,2457.9,2457.5,3.2078]
[1747592200604,3.2078,2457.9,2457.2,0.08139345]
[1747592200799,4.02141,2457.3,2455.9,25.9525]
[1747592200999,6.0399,2457.2,2456.3,0.81393]
[1747592201195,3.2078,2457.3,2456.4,5.6055]
[1747592201395,3.2078,2457.1,2456.4,5.6055]
[1747592201601,3.2078,2457.4,2456.5,6.4156]
[1747592201807,3.2078,2457.1,2456.5,3.2078]
[1747592202004,3.2078,2456.7,2455.7,40.967]
[1747592202200,20.175,2456.8,2455.9,8.8133]
[1747592202399,20.175,2456.8,2456.0,3.2078]
[1747592202801,3.2078,2457.0,2456.1,3.2078]
[1747592203001,3.2078,2457.0,2455.9,8.8133]
[1747592203002,3.2078,2457.3,2456.2,23.5638]
[1747592203309,3.2078,2457.2,2456.7,2.9134]
[1747592203509,9.1534,2457.7,2457.0,0.81371]
[1747592203709,3.2078,2457.4,2456.8,5.7213]
[1747592203911,0.81395,2456.3,2456.1,3.058]
[1747592204105,3.2078,2456.2,2456.1,4.88431]
[1747592204301,3.2078,2456.2,2456.1,0.81401]
[1747592204500,3.2078,2456.9,2456.1,7.64031]
[1747592204704,26.1266,2456.8,2456.2,1.82631]
[1747592205007,20.181,2456.8,2455.7,8.9291]
[1747592205205,3.2078,2456.7,2456.2,0.81396]
[1747592205411,3.2078,2456.7,2455.8,1.82631]
[1747592205810,3.2078,2456.7,2455.9,1.82631]
[1747592206009,3.2078,2456.7,2455.8,1.82631]
[1747592206208,20.187,2457.0,2456.7,0.8138]
[1747592206405,3.2078,2458.0,2456.9,3.2078]
[1747592206712,3.2078,2458.5,2457.8,3.2078]
[1747592206901,3.2078,2458.5,2457.9,7.75031]
[1747592207313,3.2078,2458.5,2458.0,1.82631]
[1747592207811,3.2078,2458.5,2457.8,3.058]
[1747592208111,5.495,2458.4,2457.9,1.82631]
[1747592208306,3.2078,2458.5,2458.2,0.8133]
[1747592208614,3.2078,2458.5,2458.1,0.81335]
[1747592208809,3.2078,2458.2,2456.6,8.337]
[1747592209108,3.2078,2457.8,2456.7,7.60881]
[1747592209312,29.3809,2458.1,2457.5,0.81355]
[1747592209505,3.2078,2458.7,2458.0,1.82631]
[1747592209705,3.2078,2458.7,2458.1,1.82631]
[1747592209911,3.2078,2458.7,2458.0,0.09218003]
[1747592210105,3.2078,2459.1,2458.0,0.09218003]
[1747592210306,3.2078,2458.8,2458.1,1.82631]
[1747592210505,0.81321,2458.6,2458.1,1.82631]
[1747592210712,3.2078,2458.8,2458.2,7.60881]
[1747592210917,3.2078,2458.6,2458.1,1.82631]
[1747592211213,3.2078,2458.0,2456.1,3.2078]
[1747592211412,0.8136,2457.4,2456.8,0.81376]
[1747592211612,0.81362,2457.3,2456.8,0.81376]
[1747592211911,4.02136,2457.5,2457.0,0.8137]
[1747592212114,3.2078,2457.5,2457.1,5.7617]
[1747592212315,3.2078,2457.5,2457.4,2.63989]
[1747592212516,4.02108,2458.4,2457.9,0.81341]
[1747592212708,6.0135,2458.7,2458.4,0.81325]
[1747592212907,20.9961,2458.9,2458.1,3.2078]
[1747592213215,9.2213,2459.1,2458.1,3.2078]
[1747592213518,0.81335,2458.1,2458.0,3.15018003]
[1747592213723,20.99535,2458.1,2458.0,3.15018003]
[1747592213910,0.81333,2458.2,2458.0,3.15018003]
[1747592214110,0.81335,2458.1,2458.0,3.15018003]
[1747592214714,20.181,2458.2,2458.0,3.96355003]
[1747592214916,26.1955,2458.5,2458.1,0.81335]
[1747592215108,3.2078,2458.8,2458.2,0.8133]
[1747592215313,20.185,2459.7,2458.2,3.2078]
[1747592215314,26.2231,2459.1,2458.2,3.2078]
[1747592215505,20.99398,2459.3,2458.5,3.2078]
[1747592215815,0.81289,2459.5,2459.1,0.81299]
[1747592216112,0.81295,2459.3,2459.2,5.5858]
[1747592216316,9.2499,2459.8,2459.0,3.058]
[1747592216707,0.81302,2459.1,2459.0,3.058]
[1747592216906,23.3868,2459.1,2458.2,3.2078]
[1747592217114,6.0421,2459.0,2458.2,3.2078]
[1747592217418,3.2078,2458.6,2458.2,3.2078]
[1747592217614,0.81328,2458.3,2458.2,3.2078]
[1747592217820,5.9828,2458.5,2458.2,3.2078]
[1747592218006,3.2078,2458.6,2458.3,0.81326]
[1747592218007,23.3838,2458.6,2458.3,0.81326]
[1747592218320,26.1578,2459.0,2458.2,3.2078]
[1747592218512,3.2078,2459.2,2458.2,3.2078]
[1747592218711,3.2078,2459.2,2458.4,0.81325]
[1747592218912,3.2078,2458.8,2458.5,0.81321]
[1747592219112,0.81321,2458.6,2458.5,3.058]
[1747592219413,3.2078,2458.8,2458.5,3.058]
[1747592219913,20.173,2459.0,2458.5,6.2658]
[1747592220220,1.12619639,2459.3,2458.8,3.2078]
[1747592220519,1.12619639,2459.3,2458.6,26.2299]
[1747592220520,1.12619639,2459.3,2459.2,0.81299]
[1747592220720,1.12619639,2459.3,2459.1,3.2078]
[1747592220913,1.12619639,2459.3,2459.2,5.5039]
[1747592221115,1.12619639,2459.3,2459.2,6.31689]
[1747592221307,1.12619639,2459.3,2459.2,5.5039]
[1747592221508,1.93914639,2459.3,2459.2,5.5039]
[1747592221817,0.81295,2459.3,2459.2,5.5039]
[1747592222017,5.9501,2459.7,2459.2,5.5039]
[1747592222217,0.81293,2459.4,2459.2,5.5039]
[1747592222413,0.81295,2459.3,2459.2,5.5039]
[1747592222721,0.81299,2459.2,2459.1,3.058]
[1747592223021,0.81299,2459.2,2458.1,44.2068]
[1747592223022,7.34729074,2459.2,2458.1,3.2078]
[1747592223222,0.81335,2458.1,2457.8,8.7117]
[1747592223625,0.81335,2458.1,2456.2,0.81396]
[1747592223626,8.41993319,2458.1,2456.2,0.81396]
[1747592223818,3.2078,2457.1,2456.4,6.0248]
[1747592224014,23.3718,2457.1,2456.4,6.0248]
[1747592224214,0.81379,2456.8,2456.4,9.0828]
[1747592224415,0.81384,2456.7,2456.4,9.0828]
[1747592224618,5.9891,2457.0,2456.4,9.0828]
[1747592224822,4.02168,2456.5,2456.4,3.058]
[1747592225021,0.81388,2456.5,2456.4,3.058]
[1747592225217,0.81399,2456.2,2455.5,6.0248]
[1747592225419,3.2078,2456.6,2455.9,6.0248]
[1747592225618,2.31173453,2456.7,2456.5,3.2078]
[1747592225819,0.81415,2455.7,2455.6,4.23688994]
[1747592226021,20.16,2455.7,2455.1,6.0248]
[1747592226333,0.81425,2455.4,2455.1,6.0248]
[1747592226522,3.2078,2456.1,2455.3,3.2078]
[1747592226721,25.9882,2456.4,2455.6,3.2078]
[1747592226915,3.2078,2456.6,2455.9,0.81408]
[1747592226916,1.18553814,2456.0,2455.9,0.81408]
[1747592227122,3.2078,2456.6,2456.1,0.814]
[1747592227322,1.12619639,2456.7,2456.5,3.2078]
[1747592227824,1.12619639,2456.7,2456.6,6.78435]
[1747592228025,3.2078,2457.5,2456.6,6.78435]
[1747592228026,3.2078,2457.5,2456.6,5.9705]
[1747592228223,1.12100751,2457.1,2456.7,20.188]
[1747592228428,1.12100751,2457.1,2456.5,3.058]
[1747592228429,0.81385,2456.6,2456.5,3.058]
[1747592228621,3.2078,2456.8,2456.5,3.058]
[1747592228829,5.8292,2457.0,2456.5,3.058]
[1747592229124,5.8292,2457.0,2455.7,5.9705]
[1747592229125,1.12100751,2457.1,2456.4,3.2078]
[1747592229320,1.12100751,2457.1,2456.5,5.9705]
[1747592229721,3.2078,2456.6,2454.5,20.192]
[1747592229931,0.21222202,2457.0,2454.7,9.0224]
[1747592229932,3.2078,2455.8,2454.7,9.0224]
[1747592230145,3.2078,2455.6,2455.1,5.8146]
[1747592230443,0.8142,2455.6,2455.1,5.8146]
[1747592230632,6.40173,2455.8,2455.1,5.8146]
[1747592230832,5.5876,2455.8,2455.7,0.81415]
[1747592231137,3.2078,2456.3,2455.6,0.81416]
[1747592231336,3.2078,2456.0,2455.4,5.8146]
[1747592231539,5.5876,2456.2,2455.4,5.8146]
[1747592232145,3.2078,2456.3,2456.2,0.81398]
[1747592232444,3.2078,2456.3,2455.7,23.4038]
[1747592232638,3.00219686,2456.8,2456.7,0.81381]
[1747592232838,3.2078,2457.6,2456.7,3.2078]
[1747592233040,3.2078,2457.6,2456.5,6.0457]
[1747592233041,0.81357,2457.5,2456.5,6.0457]
[1747592233237,0.81359,2457.4,2456.9,0.81373]
[1747592233442,6.71808,2457.4,2456.6,23.254]
[1747592233739,3.2078,2457.2,2456.6,3.058]
[1747592233946,3.2078,2457.2,2457.0,0.81369]
[1747592234139,3.2078,2457.2,2456.5,6.0457]
[1747592234140,3.2078,2457.2,2456.5,9.1037]
[1747592234443,6.7182,2457.1,2456.5,3.058]
[1747592234744,20.158,2457.0,2456.5,3.87186]
[1747592234943,9.92606,2456.9,2456.5,3.058]
[1747592235144,9.1123,2456.9,2456.5,3.058]
[1747592235342,3.2078,2457.2,2457.0,0.81371]
[1747592235548,3.2078,2457.2,2457.1,0.81368]
[1747592236040,5.5672,2457.9,2457.2,2.03413]
[1747592236248,4.02115,2458.1,2457.3,6.0189]
[1747592236443,3.2078,2458.1,2457.3,6.0189]
[1747592236752,0.81368,2457.1,2457.0,1.10370314]
[1747592236942,24.17548,2457.1,2457.0,0.27201126]
[1747592237138,29.17548,2457.1,2457.0,0.27201126]
[1747592237448,8.775,2457.4,2457.2,0.81363]
[1747592237656,3.2078,2457.4,2457.3,0.81361]
[1747592237942,3.2078,2457.4,2456.7,20.197]
[1747592238248,3.2078,2457.7,2457.2,0.81362]
[1747592238552,3.2078,2457.7,2456.9,3.2078]
[1747592238746,3.2078,2457.7,2457.0,2.03429]
[1747592238944,3.2078,2457.7,2457.6,0.81352]
[1747592239144,3.2078,2458.1,2457.8,0.81344]
[1747592239345,3.2078,2457.9,2457.0,3.058]
[1747592239543,23.3568,2457.9,2457.0,3.058]
[1747592239739,3.2078,2457.9,2457.6,0.8135]
[1747592239953,3.2078,2457.9,2457.0,3.058]
[1747592240151,3.2078,2457.9,2457.5,3.058]
[1747592241052,1.14063089,2457.8,2457.5,3.058]
[1747592241452,1.14063089,2457.8,2457.7,0.81348]
[1747592241852,20.144,2458.3,2457.7,5.0]
[1747592242150,0.9422432,2458.6,2458.0,2.03344]
[1747592242344,1.0235903,2458.6,2458.5,0.81322]
[1747592242544,4.2313903,2458.6,2458.1,5.6514]
[1747592242746,4.2313903,2458.6,2458.2,5.6514]
[1747592242944,4.2313903,2458.6,2458.3,0.81326]
[1747592243145,4.2313903,2458.6,2458.4,5.6514]
[1747592243853,1.0235903,2458.6,2458.4,6.46463]
[1747592244155,4.02103,2458.5,2458.3,3.058]
[1747592244457,9.0689,2458.5,2458.1,0.81335]
[1747592244651,9.0689,2458.5,2458.2,0.8133]
[1747592244853,1.0235903,2458.6,2458.2,0.81332]
[1747592245045,1.0235903,2458.6,2458.3,5.9382]
[1747592245355,3.2078,2458.4,2458.3,6.75148]
[1747592245555,3.2078,2458.4,2458.3,5.9382]
[1747592246050,1.0235903,2458.6,2458.3,5.9382]
[1747592246353,1.0235903,2458.6,2458.5,0.81322]
[1747592246555,0.0813471,2458.6,2458.5,0.81322]
[1747592247255,3.2078,2458.9,2458.8,0.81312]
[1747592247451,3.28913718,2458.9,2458.5,3.058]
[1747592247657,3.2078,2458.7,2458.5,3.058]
[1747592248049,0.08133718,2458.9,2458.6,6.42098]
[1747592248355,1e-08,2458.9,2458.8,4.02092]
[1747592248855,6.19914012,2459.7,2459.6,0.81285]
[1747592249362,6.19914012,2459.7,2459.2,3.2078]
[1747592249658,2.99134012,2459.7,2459.6,0.81285]
[1747592249850,2.99134012,2459.7,2459.5,0.81287]
[1747592250048,0.9422432,2460.1,2459.6,5.6078]
[1747592250250,1.7549532,2460.1,2459.6,5.6078]
[1747592250451,3.2078,2460.0,2459.7,0.81282]
[1747592250658,5.23963,2460.0,2459.6,5.6078]
[1747592250855,0.81281,2459.8,2459.5,3.058]
[1747592251054,3.2078,2459.6,2459.5,3.058]
[1747592251359,3.2078,2459.6,2458.9,20.133]
[1747592251953,3.2078,2459.4,2458.9,20.133]
[1747592252256,3.2078,2459.2,2459.1,0.81302]
[1747592252854,3.2078,2459.2,2459.0,25.762]
[1747592253055,3.2078,2459.6,2459.0,25.762]
[1747592253260,3.2078,2459.5,2459.2,0.81296]
[1747592253464,0.81302,2459.1,2459.0,3.058]
[1747592253654,9.1901,2459.4,2459.0,3.058]
[1747592253850,9.1901,2459.4,2459.0,1.75468485]
[1747592253851,4.02082,2459.1,2459.0,1.75468485]
[1747592254261,0.81312,2458.8,2458.3,0.81327]
[1747592254456,3.2078,2458.7,2458.1,6.1355]
[1747592254864,3.2078,2458.7,2458.5,0.8132]
[1747592255058,3.2078,2459.1,2459.0,0.81302]
[1747592255251,8.7341,2459.7,2459.6,0.81285]
[1747592255456,20.089,2459.9,2459.4,3.2078]
[1747592255659,3.2078,2460.1,2459.7,3.2078]
[1747592255859,3.2078,2460.1,2459.5,20.131]
[1747592256160,3.2078,2460.1,2459.6,3.058]
[1747592256356,3.2078,2459.7,2459.6,3.058]
[1747592256553,8.7341,2460.0,2459.6,3.058]
[1747592256752,3.2078,2460.0,2459.8,0.81276]
[1747592256955,3.2078,2460.0,2459.9,5.9401]
[1747592257154,3.2078,2460.0,2459.8,3.058]
[1747592257761,0.81276,2459.9,2459.8,3.058]
[1747592257963,3.2078,2460.0,2459.8,3.058]
[1747592258267,6.39616,2459.9,2459.8,3.058]
[1747592258464,5.5834,2459.9,2459.8,3.058]
[1747592259158,3.2078,2460.0,2459.8,3.87079]
[1747592259353,3.2078,2460.0,2459.9,0.81276]
[1747592259559,3.2078,2460.0,2459.9,6.75286]
[1747592259764,4.1500432,2460.6,2459.9,10.9401]
[1747592259965,4.9625932,2460.6,2460.0,0.8127]
[1747592260165,3.2078,2460.1,2459.9,8.9981]
[1747592260359,3.2078,2460.1,2459.9,3.058]
[1747592260566,5.5418,2460.0,2459.9,3.058]
[1747592260765,3.2078,2460.1,2459.9,3.058]
[1747592260966,3.2078,2460.1,2460.0,0.86833899]
[1747592261268,4.1500432,2460.6,2460.0,12.39361899]
[1747592261564,3.2078,2460.5,2460.0,9.18581899]
[1747592261756,3.2078,2460.2,2460.0,9.18581899]
[1747592261951,3.2078,2460.2,2460.1,0.05561899]
[1747592262163,4.02046,2460.2,2460.1,0.05561899]
[1747592262358,3.2078,2460.2,2460.1,0.05561899]
[1747592263057,4.02046,2460.2,2460.1,0.05561899]
[1747592263258,10.07136,2460.2,2460.1,0.05561899]
[1747592263959,15.07136,2460.2,2460.1,0.05561899]
[1747592264265,15.07136,2460.2,2459.0,0.09218003]
[1747592264266,0.81302,2459.1,2459.0,0.09218003]
[1747592264469,3.2078,2459.1,2459.0,0.09218003]
[1747592264661,4.02082,2459.1,2459.0,0.09218003]
[1747592264863,3.2078,2459.1,2459.0,0.09218003]
[1747592265262,3.2078,2459.1,2459.0,3.15018003]
[1747592265664,3.2078,2459.1,2459.0,3.96323003]
[1747592265967,3.2078,2459.2,2459.0,3.15018003]
[1747592266264,20.85602,2459.1,2459.0,3.15018003]
[1747592266467,31.55222,2459.1,2459.0,1.11785799]
[1747592266668,30.7392,2459.1,2458.2,6.117]
[1747592266867,3.2078,2458.7,2458.2,6.117]
[1747592267268,3.2078,2458.3,2458.2,6.117]
[1747592267860,3.2078,2458.3,2458.1,3.058]
[1747592268169,0.81347,2457.8,2457.2,0.81363]
[1747592268373,3.2078,2457.9,2457.6,0.8135]
[1747592268565,3.2078,2457.9,2457.3,6.19839014]
[1747592268769,3.2078,2457.6,2457.3,0.08139014]
[1747592269066,25.7312,2457.5,2457.3,0.08139014]
[1747592269269,1.1290538,2457.4,2456.0,2.03507]
[1747592269469,3.2078,2457.3,2456.5,5.9261]
[1747592269663,3.2078,2457.3,2456.6,0.08141333]
[1747592270368,4.3368538,2457.4,2456.9,0.81372]
[1747592270574,4.3368538,2457.4,2457.0,0.08140008]
[1747592270769,4.3368538,2457.4,2457.2,0.81363]
[1747592271074,4.3368538,2457.4,2457.1,6.73976]
[1747592271265,4.3368538,2457.4,2457.3,0.81362]
[1747592271467,3.2078,2457.4,2457.3,5.81362]
[1747592271767,3.2078,2457.6,2457.3,5.9261]
[1747592271964,0.81343,2457.9,2457.3,6.73972]
[1747592272163,3.2078,2457.5,2457.3,9.79772]
[1747592272777,3.2078,2457.5,2457.3,3.058]
[1747592273275,3.2078,2457.5,2457.3,8.895]
[1747592273474,3.2078,2457.4,2457.3,8.895]
[1747592273673,4.02138,2457.4,2457.3,3.058]
[1747592273868,3.2078,2457.4,2457.3,3.058]
[1747592274168,9.02138,2457.4,2457.3,3.058]
[1747592274473,28.2408,2457.4,2455.7,3.2078]
[1747592274669,3.2078,2456.6,2456.1,0.81401]
[1747592274866,6.1253,2456.5,2456.1,0.81401]
[1747592275066,6.9392,2456.5,2455.8,5.837]
[1747592275279,6.1253,2456.5,2456.0,0.81403]
[1747592275575,6.1253,2456.5,2455.8,8.895]
[1747592275771,6.1253,2456.5,2456.2,0.81396]
[1747592276273,6.1253,2456.5,2456.1,0.814]
[1747592276564,6.1253,2456.5,2456.1,5.9996]
[1747592276765,3.2078,2456.6,2456.5,0.81388]
[1747592277171,3.2078,2457.0,2456.6,0.81383]
[1747592277367,6.7258,2457.1,2456.6,6.81343]
[1747592277565,3.2078,2457.3,2456.6,5.9996]
[1747592278074,3.2078,2457.1,2456.6,8.03422]
[1747592278372,5.24163,2457.6,2456.8,3.2078]
[1747592278572,5.24163,2457.6,2456.5,3.058]
[1747592278573,3.2078,2457.0,2456.7,0.8138]
[1747592278973,23.2098,2457.4,2456.6,5.576]
[1747592279173,3.2078,2457.1,2456.7,0.8138]
[1747592279375,5.8664,2457.0,2456.8,0.81377]
[1747592279575,3.2078,2457.1,2457.0,0.81372]
[1747592279877,3.2078,2457.1,2456.6,8.634]
[1747592280275,3.2078,2457.1,2457.0,3.058]
[1747592280469,0.81368,2457.1,2457.0,3.058]
[1747592280874,6.68008,2457.1,2457.0,3.058]
[1747592281070,5.8664,2457.1,2457.0,3.058]
[1747592281277,3.2078,2457.2,2457.0,3.058]
[1747592281469,3.2078,2457.2,2457.1,6.0128]
[1747592281669,3.2078,2457.6,2457.2,0.81365]
[1747592281874,3.2078,2457.6,2457.3,6.0128]
[1747592282081,3.2078,2457.4,2457.0,3.058]
[1747592282379,3.2078,2457.4,2457.2,0.81364]
[1747592282569,3.2078,2457.4,2457.3,0.81362]
[1747592282775,3.2078,2457.4,2457.2,6.0128]
[1747592283072,0.81362,2457.3,2457.2,6.0128]
[1747592283275,3.2078,2457.4,2457.2,6.0128]
[1747592283478,0.81362,2457.3,2457.2,6.0128]
[1747592283778,0.81367,2457.2,2456.8,6.0128]
[1747592283970,3.2078,2457.1,2456.8,6.0128]
[1747592284281,19.978,2457.3,2457.0,0.81372]
[1747592284878,3.2078,2457.4,2457.3,0.81362]
[1747592285080,3.2078,2457.4,2457.1,0.09218003]
[1747592285381,3.2078,2457.4,2457.3,0.81362]
[1747592285576,5.9838,2457.7,2457.4,0.81358]
[1747592285777,25.9548,2457.7,2457.1,5.77398003]
[1747592285975,3.48532448,2458.1,2457.3,2.03397]
[1747592286175,3.48532448,2458.1,2458.0,0.81338]
[1747592286480,0.27752448,2458.1,2457.4,5.6818]
[1747592286675,22.27162469,2458.2,2457.8,0.81343]
[1747592286875,22.27162469,2458.2,2457.4,5.6818]
[1747592286876,3.2078,2457.9,2457.4,5.6818]
[1747592287070,19.963,2458.0,2457.8,3.058]
[1747592287272,4.70009469,2458.2,2457.8,3.058]
[1747592287472,2.99134012,2458.8,2458.6,0.81319]
[1747592287672,24.41796073,2459.4,2458.6,9.02099]
[1747592287878,3.2078,2460.0,2458.6,8.2078]
[1747592288085,9.0146,2460.8,2459.8,3.2078]
[1747592288274,0.08127768,2460.7,2460.6,0.81253]
[1747592288588,0.08127768,2460.7,2460.4,0.81257]
[1747592288975,3.2078,2460.5,2459.7,3.9255]
[1747592289175,0.81282,2459.7,2459.6,3.058]
[1747592289376,2.03215,2459.6,2458.5,3.2078]
[1747592289576,0.81304,2459.1,2458.5,4.021]
[1747592289785,20.75197,2459.3,2458.6,0.81316]
[1747592289986,20.75197,2459.3,2458.5,4.021]
[1747592289987,5.8068,2459.3,2458.5,4.021]
[1747592290284,5.8068,2459.3,2458.9,3.2078]
[1747592290481,19.935,2459.6,2458.9,3.2078]
[1747592290784,3.2078,2459.7,2459.2,3.2078]
[1747592291182,3.2078,2459.7,2459.3,5.6623]
[1747592291376,3.2078,2460.3,2459.3,5.6623]
[1747592291680,26.83943181,2460.3,2459.8,3.2078]
[1747592291884,26.83943181,2460.3,2459.4,3.2078]
[1747592292079,3.2078,2459.7,2459.3,5.6623]
[1747592292280,3.2078,2459.7,2459.0,5.2078]
[1747592292281,3.2078,2459.7,2459.0,5.058]
[1747592292494,3.2078,2459.3,2459.0,5.058]
[1747592292673,3.2078,2459.6,2459.0,5.058]
[1747592292873,3.2078,2459.6,2459.1,6.47531]
[1747592293177,3.2078,2459.6,2459.1,5.6623]
[1747592293374,0.81292,2459.4,2459.1,5.6623]
[1747592293581,5.8641,2459.5,2459.1,5.6623]
[1747592293790,0.81302,2459.1,2459.0,5.058]
[1747592293984,3.2078,2459.3,2459.0,5.058]
[1747592294187,0.81302,2459.1,2459.0,2.0]
[1747592294488,9.0719,2459.3,2459.0,2.0]
[1747592295379,1.11733181,2459.7,2459.6,0.81286]
[1747592295576,5.94538759,2460.4,2459.6,4.02066]
[1747592295783,5.94538759,2460.4,2459.9,3.2078]
[1747592295981,0.08128759,2460.4,2460.3,0.81262]
[1747592296191,0.08128759,2460.4,2460.3,6.49262]
[1747592296682,0.81272,2460.0,2459.9,3.058]
[1747592296881,3.2078,2460.3,2460.0,0.81271]
[1747592297076,3.2078,2460.3,2460.2,0.81266]
[1747592297279,0.08128759,2460.4,2460.1,5.7794]
[1747592297483,0.08128759,2460.4,2460.3,0.81262]
[1747592297885,0.08128759,2460.4,2460.3,5.7794]
[1747592298188,0.08128759,2460.4,2460.3,8.8374]